[Event "45th FIDE Olympiad 2024"]
[Site "Budapest"]
[Date "2024.09.19"]
[Round "8.49"]
[White "Ah Kye, Benitot"]
[Black "Cogan, Nicolas"]
[Result "0-1"]
[WhiteElo "1815"]
[BlackElo "2112"]
[PlyCount "100"]
[EventDate "2024.09.05"]
[EventType "team-tourn"]
[EventCountry "HUN"]
[WhiteTeam "Mauritius"]
[BlackTeam "Cote d/^Ivoire"]
[WhiteTeamCountry "MRI"]
[TimeControl "40/5400+30:1800+30"]

1. e4 c5 2. Nf3 g6 3. d4 cxd4 4. Nxd4 Nf6 5. Nc3 d6 6. Be3 Bg7 7. f3 Nc6 8. Qd2 O-O 9. Bc4 Bd7 10. Bb3 Rc8 11. O-O-O Ne5 12. Kb1 a5 13. h4 h5 14. g4 b5 15. a3 Nc4 16. Bxc4 bxc4 17. a4 Rb8 18. Ndb5 Bxb5 19. Nxb5 c3 20. Nxc3 hxg4 21. h5 Nxh5 22. Rxh5 gxh5 23. Bh6 e6 24. fxg4 hxg4 25. Rg1 Qb6 26. Qc1 Bxh6 27. Rxg4+ Kh7 28. Rh4 Qxb2+ 29. Qxb2 Rxb2+ 30. Kxb2 Kg6 31. Nb5 Bg7+ 32. Kb3 Kg5 33. Rh7 Be5 34. Kc4 f5 35. exf5 exf5 36. Rd7 f4 37. Nxd6 Bxd6 38. Rxd6 f3 39. Rd1 Kg4 40. Kb5 Rf5+ 41. Kb6 f2 42. Rf1 Kf3 43. c4 Ke2 44. Rxf2+ Kxf2 45. c5 Ke3 46. Kxa5 Kd4 47. Kb6 Kd5 48. a5 Rf6+ 49. Kb7 Kxc5 50. a6 Rf7+ {0-} 0-1

[Event "45th FIDE Olympiad 2024"]
[Site "Budapest"]
[Date "2024.09.19"]
[Round "8.50"]
[White "Macovei, Andrei"]
[Black "Nguyen, Thai Dai Van"]
[Result "0-1"]
[ECO "C54"]
[WhiteElo "2464"]
[BlackElo "2647"]
[Annotator "RC"]
[PlyCount "80"]
[EventDate "2024.09.05"]
[EventType "team-tourn"]
[EventCountry "HUN"]
[SourceTitle "playchess.com"]
[Source "ChessBase"]
[SourceQuality "1"]
[WhiteTeam "Moldova"]
[BlackTeam "Czech Republic"]
[WhiteTeamCountry "MDA"]
[BlackTeamCountry "CZE"]
[TimeControl "40/5400+30:1800+30"]

1. e4 {[%emt 0:00:08]} e5 {[%emt 0:00:29]} 2. Nf3 {[%emt 0:00:45]} Nc6 {[%emt 0:00:09]} 3. Bc4 {[%emt 0:00:33]} Bc5 {[%emt 0:00:17]} 4. c3 {[%emt 0:00:09]} Nf6 {[%emt 0:00:07]} 5. d3 {[%emt 0:00:04]} d6 {[%emt 0:00:08]} 6. O-O {[%emt 0:00:45]} a6 {[%emt 0:01:06]} 7. a4 {[%emt 0:02:09]} Ba7 {[%emt 0:01:41]} 8. Re1 {[%emt 0:02:27]} O-O {[%emt 0:01:15]} 9. h3 {[%emt 0:00:11]} h6 {[%emt 0:01:17]} 10. Nbd2 {[%emt 0:03:11]} Re8 {[%emt 0:01:33]} 11. b4 {[%emt 0:02:41]} Be6 {[%emt 0:00:08]} 12. Bxe6 {[%emt 0:06:29]} Rxe6 {[%emt 0:00:32]} 13. Nf1 {[%emt 0:03:24]} d5 {[%emt 0:01:56]} 14. Qc2 {[%emt 0:00:46]} Ne7 {[%emt 0:08:47]} 15. Be3 {[%emt 0:06:52]} Bxe3 {[%emt 0:00:11]} 16. Nxe3 {[%emt 0:00:27]} b6 {[%emt 0:02:23]} 17. c4 {[%emt 0:13:25]} d4 {[%emt 0:15:59]} 18. Nd5 {[%emt 0:10:06]} Ng6 {[%emt 0:01:24]} 19. a5 {[%emt 0:06:34]} bxa5 {[%emt 0:04:27]} 20. bxa5 {[%emt 0:02:54]} c6 {[%emt 0:02:46]} 21. Nb6 {[%emt 0:02:50]} Rb8 {[%emt 0:01:02]} 22. g3 {[%emt 0:00:25]} Qe7 {[%emt 0:24:03]} 23. Kh2 {[%emt 0:09:36]} Rf8 {[%emt 0:01:48]} 24. c5 {[%emt 0:06:00]} Ne8 {[%emt 0:02:34]} 25. Qc4 {[%emt 0:05:26]} Nc7 {[%emt 0:05:31]} 26. Rf1 {[%emt 0:02:46]} Kh7 {[%emt 0:01:26]} 27. Rae1 {[%emt 0:00:23]} f5 {[%emt 0:04:31]} 28. exf5 {[%emt 0:05:40]} Rxf5 {[%emt 0:00:02]} 29. Nd2 {[%emt 0:00:07]} Rh5 {[%emt 0:01:19]} 30. Ne4 {[%emt 0:01:56]} Nf4 {[%emt 0:02:48]} 31. Rh1 {[%emt 0:02:47]} Rxh3+ {[%emt 0:03:08]} 32. Kg1 {[%emt 0:00:01]} Rxh1+ {[%emt 0:00:07]} 33. Kxh1 {[%emt 0:00:02]} Rg6 {[%emt 0:06:47]} 34. Qb3 {[%emt 0:02:13]} Ncd5 {[%emt 0:04:32]} 35. Qd1 {[%emt 0:00:37]} Qe6 {[%emt 0:01:07]} 36. Qf3 {[%emt 0:00:14]} Qh3+ {[%emt 0:00:18]} 37. Kg1 {[%emt 0:00:01]} Rg4 {[%emt 0:00:21]} 38. Nd2 {[%emt 0:01:05]} Rg5 {[%emt 0:00:20]} 39. Nbc4 {[%emt 0:00:39]} Rh5 {[%emt 0:00:41]} 40. Nf1 {[%emt 0:00:31]} Nc3 {[%emt 0:00:16]} 0-1

[Event "45th FIDE Olympiad 2024"]
[Site "Budapest"]
[Date "2024.09.19"]
[Round "8.50"]
[White "De Gondo, Simplice Armel"]
[Black "Lam Kin Cheung, Stephane"]
[Result "1-0"]
[WhiteElo "2045"]
[BlackElo "1677"]
[PlyCount "69"]
[EventDate "2024.09.05"]
[EventType "team-tourn"]
[EventCountry "HUN"]
[WhiteTeam "Cote d/^Ivoire"]
[BlackTeam "Mauritius"]
[BlackTeamCountry "MRI"]
[TimeControl "40/5400+30:1800+30"]

1. e4 c5 2. Nf3 Nc6 3. d4 cxd4 4. Nxd4 g6 5. Nc3 Bg7 6. Be3 Nf6 7. Bc4 O-O 8. Bb3 Re8 9. f3 e6 10. Qd2 d5 11. exd5 exd5 12. O-O-O Na5 13. Nde2 Nxb3+ 14. axb3 Be6 15. Nf4 Qa5 16. Kb1 Rad8 17. Ncxd5 Qxd2 18. Nxf6+ Bxf6 19. Bxd2 Bd7 20. Nd5 Kg7 21. Nxf6 Kxf6 22. Bc3+ Kg5 23. h4+ Kh6 24. Bf6 Rc8 25. Rxd7 Re6 26. Rxf7 g5 27. hxg5+ Kg6 28. Rhxh7 Rcc6 29. Rhg7+ Kh5 30. b4 Ra6 31. b3 Re1+ 32. Kb2 Re2 33. Rh7+ Kg6 34. g4 Rxf6 35. Rfg7# 1-0

[Event "45th FIDE Olympiad 2024"]
[Site "Budapest"]
[Date "2024.09.19"]
[Round "8.51"]
[White "Zilka, Stepan"]
[Black "Lashkin, Jegor"]
[Result "0-1"]
[ECO "B90"]
[WhiteElo "2574"]
[BlackElo "2472"]
[Annotator "TA"]
[PlyCount "59"]
[EventDate "2024.09.05"]
[EventType "team-tourn"]
[EventCountry "HUN"]
[SourceTitle "playchess.com"]
[Source "ChessBase"]
[SourceQuality "1"]
[WhiteTeam "Czech Republic"]
[BlackTeam "Moldova"]
[WhiteTeamCountry "CZE"]
[BlackTeamCountry "MDA"]
[TimeControl "40/5400+30:1800+30"]

{[%evp 17,59,20,22,20,18,14,23,18,27,29,26,9,16,11,20,16,50,29,41,48,61,63,41,6,27,-94,-92,-220,-197,-208,-185,-216,-194,-222,-149,-272,-220,-209,-162,-247,-237,-502,-493,-429]} 1. e4 {[%emt 0:00:04]} c5 {[%emt 0:00:13]} 2. Nf3 {[%emt 0:00:05]} d6 {[%emt 0:00:05]} 3. d4 {[%emt 0:00:04]} cxd4 {[%emt 0:00:06]} 4. Nxd4 {[%emt 0:00:06]} Nf6 {[%emt 0:00:04]} 5. Nc3 {[%emt 0:00:06]} a6 {[%emt 0:00:03]} 6. Be3 {[%emt 0:00:10]} e5 {[%emt 0:00:08]} 7. Nb3 {[%emt 0:00:05]} Be6 {[%emt 0:00:08]} 8. f3 {[%emt 0:00:15]} h5 {[%emt 0:00:06]} 9. Qd2 {[%emt 0:01:12]} Nbd7 {[%emt 0:00:17]} 10. Nd5 {[%emt 0:00:55]} Bxd5 {[%emt 0:00:13]} 11. exd5 {[%emt 0:00:07]} g6 {[%emt 0:00:05]} 12. Be2 {[%emt 0:01:02] White has an edge.} Bg7 {[%emt 0:00:29]} 13. O-O {[%emt 0:01:09]} b6 {[%emt 0:00:13]} 14. c4 {[%emt 0:01:00]} O-O {[%emt 0:00:13]} 15. Kh1 {[%emt 0:00:51]} a5 {[%emt 0:04:34]} 16. Rae1 {[%emt 0:02:56]} Re8 {[%emt 0:02:36]} 17. Na1 {[%emt 0:00:59]} Nc5 {[%emt 0:02:11]} 18. Nc2 {[%emt 0:01:41]} h4 {[%emt 0:15:16][%cal Bh5h4,Bh4h3][%mdl 32]} 19. Bg5 {[%emt 0:05:58][%cal Oc2a3]} h3 {[%emt 0:00:07]} 20. g4 {[%emt 0:00:05]} Qd7 {[%emt 0:04:59]} 21. Bd1 {[%emt 0:14:21] [#]} (21. Bh6 $11) 21... e4 $1 $17 {[%emt 0:07:35] Black is more active.} 22. Nd4 {[%emt 0:11:47] Loses the game.} (22. Bxf6 $17 Bxf6 23. b3) 22... exf3 $19 {[%emt 0:02:18]} 23. Bxf6 {[%emt 0:00:08]} Bxf6 {[%emt 0:01:43]} 24. Bxf3 {[%emt 0:00:08][%cal Od4e6]} Rxe1 {[%emt 0:04:00]} 25. Rxe1 {[%emt 0:00:08]} Re8 $40 {[%emt 0:02:52][%mdl 128] Black is out for blood.} 26. Rf1 {[%emt 0:06:33]} (26. Nc6 $17 {was worth a try.}) 26... Bxd4 {[%emt 0:09:20]} 27. Qxd4 {[%emt 0:00:06]} Qe7 {[%emt 0:02:18] Threatens to win with ...Qg5.} 28. Kg1 {[%emt 0:00:13]} (28. Qd2 {keeps fighting.}) 28... Qg5 {[%emt 0:00:51] aiming for ...Re3.} 29. Rf2 $2 {[%emt 0:05:48] [#]} (29. Bd1) 29... Ne4 $1 {[%emt 0:13:59][%mdl 512]} 30. Rc2 {[%emt 0:06:49] Weighted Error Value: White=0.49/Black=0.13 (very precise) .  Mistake:       	White=5     	---        Inaccurate:     	White=1     	Black=2      OK:         	White=5     	Black=7      Best:        	White=1     	Black=2      Strong:       	---       	Black=1} 0-1

[Event "45th FIDE Olympiad 2024"]
[Site "Budapest"]
[Date "2024.09.19"]
[Round "8.51"]
[White "Lee Luen Mang, Stefan"]
[Black "Manan, Yoboue Hermann"]
[Result "0-1"]
[WhiteElo "1803"]
[BlackElo "2030"]
[PlyCount "82"]
[EventDate "2024.09.05"]
[EventType "team-tourn"]
[EventCountry "HUN"]
[WhiteTeam "Mauritius"]
[BlackTeam "Cote d/^Ivoire"]
[WhiteTeamCountry "MRI"]
[TimeControl "40/5400+30:1800+30"]

1. e4 e5 2. Nc3 Nc6 3. Bc4 Nf6 4. d3 Bc5 5. f4 d6 6. Nf3 exf4 7. Bxf4 O-O 8. Qd2 Na5 9. O-O-O Nxc4 10. dxc4 Be6 11. Qe2 Ng4 12. Nd4 Qf6 13. Nxe6 fxe6 14. Rhf1 Qg6 15. Rd3 e5 16. Nd5 Rae8 17. Rg3 h5 18. Bd2 Rxf1+ 19. Qxf1 c6 20. Nc3 h4 21. Rh3 Rf8 22. Rf3 Rxf3 23. Qxf3 Nxh2 24. Qh3 Nf1 25. Qxh4 Nxd2 26. Qd8+ Kh7 27. Qh4+ Qh6 28. Qxh6+ Kxh6 29. Kxd2 Bb4 30. Ke3 Bxc3 31. bxc3 Kg5 32. Kf3 Kh4 33. c5 dxc5 34. c4 b5 35. a3 g6 36. Kf2 Kg4 37. g3 Kh3 38. Kf3 g5 39. c3 g4+ 40. Kf2 bxc4 41. a4 a5 {0-} 0-1

[Event "45th FIDE Olympiad 2024"]
[Site "Budapest"]
[Date "2024.09.19"]
[Round "8.52"]
[White "Bologan, Victor"]
[Black "Vykouk, Jan"]
[Result "1-0"]
[ECO "B56"]
[WhiteElo "2598"]
[BlackElo "2483"]
[Annotator "TA"]
[PlyCount "95"]
[EventDate "2024.09.05"]
[EventType "team-tourn"]
[EventCountry "HUN"]
[SourceTitle "playchess.com"]
[Source "ChessBase"]
[SourceQuality "1"]
[WhiteTeam "Moldova"]
[BlackTeam "Czech Republic"]
[WhiteTeamCountry "MDA"]
[BlackTeamCountry "CZE"]
[TimeControl "40/5400+30:1800+30"]

{[%evp 18,95,52,53,52,56,68,68,76,58,48,75,66,65,58,31,90,93,100,94,97,94,94,25,67,51,61,71,102,83,102,52,79,58,156,137,119,89,119,126,129,118,224,205,226,226,233,237,242,232,246,231,233,208,306,321,314,316,305,306,458,462,542,544,531,537,729,717,794,793,822,795,937,934,983,661,820,764,1029,789]} 1. e4 {[%emt 0:00:02]} c5 {[%emt 0:00:06]} 2. Nf3 {[%emt 0:00:06]} d6 {[%emt 0:00:07]} 3. d4 {[%emt 0:00:04]} cxd4 {[%emt 0:00:11]} 4. Nxd4 {[%emt 0:00:06]} Nf6 {[%emt 0:00:06]} 5. Nc3 {[%emt 0:00:03]} Nc6 {[%emt 0:00:09]} 6. f3 {[%emt 0:03:22]} g6 {[%emt 0:04:55] B56: Classical Sicilian: Unusual Lines.} 7. Be3 {[%emt 0:00:18]} h5 {[%emt 0:00:14]} 8. Bc4 {[%emt 0:11:59]} Bd7 {[%emt 0:00:08]} 9. Qd2 {[%emt 0:01:19]} Nxd4 {[%emt 0:00:07]} 10. Bxd4 {[%emt 0:00:17]} Bh6 {[%emt 0:00:08]} 11. Qf2 {[%emt 0:03:21]} O-O {[%emt 0:00:16]} 12. O-O {[%emt 0:00:52]} Qa5 {[%emt 0:15:06]} 13. Rad1 $146 {[%emt 0:05:23]} ({Predecessor:} 13. Bxf6 exf6 14. Rfd1 Bf4 15. Nd5 Be5 16. c3 f5 17. f4 Bg7 18. exf5 Bxf5 19. Ne7+ {½-½ Belov,A (2421)-Fier,A (2549) Titled Tuesday intern op 09th Jan Early blitz 2024 (7)}) 13... Be6 {[%emt 0:09:48]} 14. Bb3 {[%emt 0:01:05]} Bg7 {[%emt 0:01:42]} 15. h3 {[%emt 0:09:50]} b5 {[%emt 0:13:00]} 16. Rfe1 {[%emt 0:21:25]} Nd7 {[%emt 0:07:35]} (16... Bxb3 $14 17. axb3 b4) 17. f4 $16 {[%emt 0:02:51]} b4 {[%emt 0:03:58]} 18. Bxg7 {[%emt 0:03:30]} Kxg7 {[%emt 0:00:07]} 19. Nd5 {[%emt 0:00:05]} Bxd5 {[%emt 0:00:31]} 20. Rxd5 {[%emt 0:00:16]} ({Better is} 20. exd5 $16 Rae8 21. Qd4+ f6 22. Kh1) 20... Qb6 {[%emt 0:00:31]} 21. e5 {[%emt 0:04:19]} Qxf2+ {[%emt 0:26:18]} 22. Kxf2 {[%emt 0:00:06]} a5 {[%emt 0:00:04]} 23. exd6 {[%emt 0:00:42]} e6 {[%emt 0:00:03]} 24. Rd4 {[%emt 0:03:58]} (24. Rb5 $16) 24... Rfc8 {[%emt 0:01:25]} 25. a4 {[%emt 0:05:07]} Nc5 {[%emt 0:01:18]} (25... Rc5 $14) 26. Rc4 {[%emt 0:08:12]} Nd7 {[%emt 0:06:21]} 27. Rd1 {[%emt 0:04:18]} Kf8 {[%emt 0:00:21]} 28. g4 {[%emt 0:00:55]} hxg4 {[%emt 0:00:04]} 29. hxg4 {[%emt 0:00:05]} Nb6 {[%emt 0:01:58]} (29... Rc5 $16) 30. Rxc8+ $18 {[%emt 0:05:26]} Rxc8 {[%emt 0:00:07]} 31. d7 {[%emt 0:00:05]} Rd8 {[%emt 0:00:09] [#]} 32. Rd6 $1 {[%emt 0:00:48]} Nxd7 {[%emt 0:00:09]} 33. Ke3 {[%emt 0:00:09]} Ke7 {[%emt 0:03:03]} 34. Ra6 {[%emt 0:00:05]} Nf6 {[%emt 0:01:06] [#]} 35. g5 $1 {[%emt 0:00:33]} (35. Rxa5 Nxg4+ 36. Kf3 Nf6 $16) (35. Kf3 Rd1) 35... Ng4+ {[%emt 0:01:31]} (35... Nd5+ {keeps fighting.} 36. Kf3 Nc7 37. Rxa5 Kd6) 36. Kf3 $18 {[%emt 0:00:30]} Nh2+ {[%emt 0:00:35]} 37. Ke2 {[%emt 0:00:22]} Rd4 {[%emt 0:02:29]} 38. Ke3 {[%emt 0:00:12]} ({Resist} 38. Rxa5 $6 Rxf4 39. Rb5 Rf5 $16) 38... Rd1 {[%emt 0:00:05]} (38... Rd7 $142 39. Rxa5 Nf1+ 40. Kf2 Nd2) 39. Rxa5 $18 {[%emt 0:00:10]} Re1+ {[%emt 0:01:09]} 40. Kf2 {[%emt 0:01:33]} Rd1 {[%emt 0:01:34]} 41. Ra7+ {[%emt 0:30:38]} Ke8 {[%emt 0:31:16]} 42. Ke2 {[%emt 0:02:13]} Ra1 {[%emt 0:00:00]} 43. a5 {[%emt 0:00:00]} Nf1 {[%emt 0:00:00]} 44. a6 {[%emt 0:00:00]} Ng3+ {[%emt 0:00:00]} 45. Kd3 {[%emt 0:00:00]} Nh5 {[%emt 0:00:00]} 46. Ke3 {[%emt 0:00:00]} Re1+ {[%emt 0:00:00]} 47. Kd4 {[%emt 0:00:00]} Ra1 {[%emt 0:00:00]} 48. Bc4 {[%emt 0:00:00]} 1-0

[Event "45th FIDE Olympiad 2024"]
[Site "Budapest"]
[Date "2024.09.19"]
[Round "8.52"]
[White "Nean, Franck Anderson"]
[Black "Naipal, Hoolan"]
[Result "1-0"]
[WhiteElo "1917"]
[BlackElo "1851"]
[PlyCount "87"]
[EventDate "2024.09.05"]
[EventType "team-tourn"]
[EventCountry "HUN"]
[WhiteTeam "Cote d/^Ivoire"]
[BlackTeam "Mauritius"]
[BlackTeamCountry "MRI"]
[TimeControl "40/5400+30:1800+30"]

1. d4 Nf6 2. Nf3 e6 3. c4 b6 4. a3 Bb7 5. Bg5 Be7 6. e3 d6 7. Bd3 Nbd7 8. Nc3 h6 9. Bh4 c5 10. h3 Nh5 11. Bxe7 Qxe7 12. O-O cxd4 13. Nxd4 Nhf6 14. Ndb5 Ne5 15. Be2 Rd8 16. Qa4 Rd7 17. Nxa7 O-O 18. Nab5 Ra8 19. Qb3 d5 20. cxd5 Nxd5 21. Nxd5 Bxd5 22. Qc2 Qg5 23. e4 Qg6 24. f3 Bb7 25. Qc3 Qg3 26. f4 Qxc3 27. Nxc3 Nd3 28. Bxd3 Rxd3 29. Rad1 Rad8 30. Rxd3 Rxd3 31. Rf2 Re3 32. e5 f6 33. exf6 gxf6 34. Re2 Rg3 35. Kh2 Rg7 36. Na4 b5 37. Nc5 Bd5 38. Nxe6 Ra7 39. f5 b4 40. axb4 Rb7 41. Rd2 Bxe6 42. fxe6 Kf8 43. Rd8+ Ke7 44. Rd7+ 1-0

[Event "45th FIDE Olympiad 2024"]
[Site "Budapest"]
[Date "2024.09.19"]
[Round "8.53"]
[White "Albornoz Cabrera, Carlos Daniel"]
[Black "Rodshtein, Maxim"]
[Result "1/2-1/2"]
[ECO "B94"]
[WhiteElo "2579"]
[BlackElo "2600"]
[Annotator "TA"]
[PlyCount "61"]
[EventDate "2024.09.05"]
[EventType "team-tourn"]
[EventCountry "HUN"]
[SourceTitle "playchess.com"]
[Source "ChessBase"]
[SourceQuality "1"]
[WhiteTeam "Cuba"]
[BlackTeam "Israel"]
[WhiteTeamCountry "CUB"]
[BlackTeamCountry "ISR"]
[TimeControl "40/5400+30:1800+30"]

{[%evp 12,61,21,9,17,23,19,0,2,0,-4,-20,-11,0,0,-20,-21,-37,0,4,17,0,5,12,0,0,0,0,0,0,8,0,0,0,0,0,0,0,0,0,0,0,0,0,0,0,0,0,0,0,0,0]} 1. e4 {[%emt 0:00:02]} c5 {[%emt 0:00:15]} 2. Nf3 {[%emt 0:00:04]} d6 {[%emt 0:00:14]} 3. d4 {[%emt 0:00:04]} cxd4 {[%emt 0:00:05]} 4. Nxd4 {[%emt 0:00:03]} Nf6 {[%emt 0:00:06]} 5. Nc3 {[%emt 0:00:03]} a6 {[%emt 0:00:21]} 6. Bg5 {[%emt 0:00:04]} Nbd7 {[%emt 0:00:35]} 7. Bc4 {[%emt 0:00:13]} Qb6 {[%emt 0:00:44]} 8. Bb3 {[%emt 0:00:21]} e6 {[%emt 0:00:26]} 9. Qd2 {[%emt 0:00:33]} Be7 $1 {[%emt 0:00:23]} 10. O-O-O {[%emt 0:00:28]} Nc5 {[%emt 0:00:40]} 11. f3 {[%emt 0:00:05]} Qc7 {[%emt 0:00:28]} 12. g4 {[%emt 0:00:17]} b5 {[%emt 0:00:19] aiming for ...b4.} 13. a3 {[%emt 0:00:19]} Rb8 {[%emt 0:00:50]} 14. Kb1 {[%emt 0:00:34]} O-O {[%emt 0:01:16]} 15. h4 {[%emt 0:03:13] The position is equal.} b4 {[%emt 0:08:50]} 16. axb4 {[%emt 0:00:41]} Rxb4 {[%emt 0:00:03]} 17. Bxf6 {[%emt 0:02:00]} Bxf6 {[%emt 0:00:16]} 18. Nd5 $1 {[%emt 0:00:17]} exd5 {[%emt 0:00:07]} 19. Qxb4 {[%emt 0:00:05]} dxe4 {[%emt 0:00:16]} 20. g5 {[%emt 0:01:37]} Be5 {[%emt 0:00:37]} 21. fxe4 {[%emt 0:00:08]} Bg4 {[%emt 0:01:00] Prevents Nf3. A strong pair of Bishops.} 22. Bd5 {[%emt 0:01:17]} Bxd1 {[%emt 0:01:19]} 23. Rxd1 {[%emt 0:00:05]} Rb8 {[%emt 0:02:55]} 24. Qa3 {[%emt 0:02:10]} Qd7 {[%emt 0:03:55]} 25. Ka2 {[%emt 0:07:16]} Ne6 {[%emt 0:09:21]} (25... Qg4 26. Rf1 h5 (26... Bxd4 $2 27. Rxf7 Ne6 28. Re7 $18) 27. g6 (27. Bxf7+ Kh8 $11) (27. Rxf7 Kh7 $18) 27... Bxd4 28. Rxf7 Qxg6 (28... Qxh4 29. Qf3 Rxb2+ 30. Ka3) (28... Rxb2+ 29. Qxb2 Qxg6 30. Qb8+ Kh7 31. Rf8) 29. Rb7+ Kh7 30. Rxb8 $18) 26. Bxe6 {[%emt 0:00:05]} fxe6 {[%emt 0:00:05]} 27. Qxa6 {[%emt 0:00:03] Nc6 is the strong threat.} Qe8 {[%emt 0:02:27]} 28. Qc4 {[%emt 0:13:59]} Rc8 {[%emt 0:07:32]} 29. Qb3 {[%emt 0:01:22]} (29. Qxe6+ Qxe6+ 30. Nxe6 Rxc2) 29... Rb8 {[%emt 0:00:49]} 30. Qc4 {[%emt 0:00:22]} (30. Qxe6+ Qxe6+ 31. Nxe6 Rxb2+ 32. Ka3 Kf7 33. Nd8+ Kg6 $17) 30... Rc8 {[%emt 0:00:09]} 31. Qb3 {[%emt 0:00:08] An interesting draw.   Weighted Error Value: White=0.04 (flawless) /Black=0.03 (flawless) .  Inaccurate:     	---       	Black=1      OK:         	White=14    	Black=15     Best:        	---       	Black=1      Strong:       	White=1     	Black=1} (31. Qxe6+ Qxe6+ 32. Nxe6 Rxc2) 1/2-1/2

[Event "45th FIDE Olympiad 2024"]
[Site "Budapest"]
[Date "2024.09.19"]
[Round "8.53"]
[White "Gurner, Jem"]
[Black "Kumar, Manoj"]
[Result "1-0"]
[WhiteElo "2091"]
[BlackElo "1951"]
[PlyCount "101"]
[EventDate "2024.09.05"]
[EventType "team-tourn"]
[EventCountry "HUN"]
[WhiteTeam "Jersey"]
[BlackTeam "Fiji"]
[BlackTeamCountry "FIJ"]
[TimeControl "40/5400+30:1800+30"]

1. e4 e5 2. Nf3 Nc6 3. d4 exd4 4. Nxd4 Nf6 5. Nxc6 bxc6 6. e5 Nd5 7. c4 Nb6 8. Be2 Be7 9. O-O O-O 10. Nc3 d6 11. Bf4 Be6 12. b3 d5 13. Qc2 Qc8 14. Bd3 h6 15. Rfd1 a5 16. Ne2 c5 17. Ng3 Rd8 18. a4 dxc4 19. bxc4 Rxd3 20. Qxd3 Bxc4 21. Qe4 Be6 22. Be3 Rb8 23. f4 Qb7 24. Qxb7 Rxb7 25. Rab1 g6 26. Rb5 c4 27. Ne4 Ra7 28. Bxb6 cxb6 29. Rxb6 c3 30. Rb8+ Kg7 31. Nxc3 Bc5+ 32. Kh1 Be3 33. Nb5 Re7 34. Nd6 Bxf4 35. Ne8+ Rxe8 36. Rxe8 Bxe5 37. Ra8 Bc3 38. Rd6 Bb4 39. Rda6 Kf6 40. Rxa5 Bxa5 41. Rxa5 Ke7 42. Rc5 Kd6 43. Rc1 Bd7 44. a5 Bb5 45. Kg1 f5 46. Kf2 g5 47. g3 h5 48. Ke3 Ba6 49. Kd4 Bb7 50. Rc5 f4 51. Rxg5 1-0

[Event "45th FIDE Olympiad 2024"]
[Site "Budapest"]
[Date "2024.09.19"]
[Round "8.54"]
[White "Gorshtein, Ido"]
[Black "Quesada Perez, Luis Ernesto"]
[Result "0-1"]
[ECO "A11"]
[WhiteElo "2543"]
[BlackElo "2578"]
[Annotator "TA"]
[PlyCount "66"]
[EventDate "2024.09.05"]
[EventType "team-tourn"]
[EventCountry "HUN"]
[SourceTitle "playchess.com"]
[Source "ChessBase"]
[SourceQuality "1"]
[WhiteTeam "Israel"]
[BlackTeam "Cuba"]
[WhiteTeamCountry "ISR"]
[BlackTeamCountry "CUB"]
[TimeControl "40/5400+30:1800+30"]

{[%evp 11,66,0,0,-4,6,0,0,-25,-20,-27,-21,-27,-6,-19,-25,-46,-23,-36,-16,-21,-44,-35,2,7,2,-31,-24,-16,-25,-85,-16,-25,-22,-25,-7,-8,0,-6,0,-105,-106,-144,-140,-153,-135,-461,-458,-461,-441,-716,-704,-699,-691,-1075,-1064,-2208,-2365]} 1. c4 {[%emt 0:00:04]} c6 {[%emt 0:00:17]} 2. Nf3 {[%emt 0:00:12]} d5 {[%emt 0:00:06]} 3. e3 {[%emt 0:00:08]} Nf6 {[%emt 0:00:06]} 4. Nc3 {[%emt 0:00:06]} e6 {[%emt 0:00:13]} 5. b3 {[%emt 0:00:21]} Bd6 {[%emt 0:00:06]} 6. Bb2 {[%emt 0:00:18]} O-O {[%emt 0:00:12]} 7. Qc2 {[%emt 0:00:59]} b6 {[%emt 0:00:19]} 8. Be2 {[%emt 0:08:31]} Bb7 {[%emt 0:00:12]} 9. Rg1 {[%emt 0:08:01] The position is equal.} Na6 {[%emt 0:00:51]} 10. g4 {[%emt 0:04:37]} e5 {[%emt 0:00:20]} 11. g5 {[%emt 0:01:18]} Nd7 {[%emt 0:00:05]} 12. a3 {[%emt 0:07:29] Wards off Nb4} Nc7 {[%emt 0:00:11]} 13. d4 {[%emt 0:15:42]} e4 {[%emt 0:06:40]} 14. Nd2 {[%emt 0:00:07]} a5 {[%emt 0:10:44]} (14... Bxh2 $2 15. Rh1 $18) 15. f3 {[%emt 0:09:36]} exf3 {[%emt 0:01:34]} (15... Bxh2 $6 16. Rg2 Bd6 17. fxe4 $16) 16. Nxf3 {[%emt 0:02:10]} c5 {[%emt 0:07:46] ...Qe7 is the strong threat.} 17. O-O-O {[%emt 0:06:57]} Re8 {[%emt 0:14:10]} 18. Kb1 {[%emt 0:05:03]} a4 {[%emt 0:03:36]} (18... dxc4 $6 19. bxc4 cxd4 20. Nxd4 $16 (20. exd4 b5 $11)) 19. bxa4 {[%emt 0:05:17][%cal Of3e5]} Rxe3 {[%emt 0:02:40]} 20. Bc1 {[%emt 0:01:03] [#]} Re7 {[%emt 0:06:26]} ({Better is} 20... cxd4 $1 $17 21. Nxd4 Rh3) 21. h4 {[%emt 0:01:38][%cal Bh2h4,Bh4h5][%mdl 32]} Qe8 {[%emt 0:04:20]} 22. Bd3 {[%emt 0:05:53]} g6 {[%emt 0:12:05] Hoping for ...dxc4.} 23. h5 {[%emt 0:07:25]} cxd4 {[%emt 0:00:50]} (23... gxh5 $2 24. Bxh7+ Kh8 25. Rh1 $18) 24. Nxd4 {[%emt 0:01:06]} Be5 {[%emt 0:00:07]} 25. Bf1 {[%emt 0:01:16]} (25. cxd5 $11 Nxd5 26. Nxd5 Bxd5 27. hxg6 hxg6 (27... Bxd4 28. gxf7+ Rxf7 29. g6 $11) 28. Bb5) 25... Nc5 $17 {[%emt 0:01:22]} ({Worse is} 25... gxh5 26. Bd3 Nf8 27. Nf5 $18) 26. Bb2 {[%emt 0:02:13]} Nxa4 {[%emt 0:04:01] Black is more active.} ({Don't play} 26... gxh5 $6 27. Bg2 Nxa4 28. Nxa4 Rxa4 29. Nf5 Rxc4 30. Nxe7+ Qxe7 31. Qe2 $11) 27. hxg6 {[%emt 0:01:03]} hxg6 {[%emt 0:01:17] [#] aiming for ...Nxb2.} ({But not} 27... fxg6 28. Nxa4 Qxa4 29. Bg2 $17) 28. Bg2 $2 {[%emt 0:01:18][%mdl 8192] This costs White the game.} (28. Nxa4 $17 Qxa4 29. Bg2) 28... Nxb2 $19 {[%emt 0:00:42] Black is clearly winning.} 29. Qxb2 {[%emt 0:00:16]} Rd8 {[%emt 0:07:34]} 30. Rh1 {[%emt 0:02:52]} (30. Rge1 $142 dxc4 31. Bxb7 Rxd4 (31... Bxd4 $2 32. Rxe7 Qxe7 33. Qb4 $19) 32. Qb4 Rxd1+ 33. Nxd1) 30... dxc4 {[%emt 0:01:16]} 31. Bxb7 {[%emt 0:00:05]} Rxd4 {[%emt 0:00:13]} 32. Rde1 {[%emt 0:01:02]} Bg7 {[%emt 0:00:43]} 33. Ref1 {[%emt 0:02:05]} Rd3 {[%emt 0:02:15] Weighted Error Value: White=0.76/Black=0.08 (flawless) .  Loses game:     	White=1     	---        Mistake:       	White=2     	Black=1      Inaccurate:     	White=2     	Black=1      OK:         	White=8     	Black=9      Best:        	---       	Black=5} 0-1